Cogmind - Beta 13 @@@ ROGUE MODE // 2024.04.17 @ 20:09:12 Player: Cheeriohz Result: Destroyed self with Grenade Launcher Performance ------------- Evolutions (0) 0 Regions Visited (2) 400 Robots Destroyed (35) 175 Value Destroyed (747) 747 Prototype IDs (2) 40 Alien Tech Used (0) 0 Bonus (0) 0 TOTAL SCORE: 1362 Bonus ------- None Cogmind --------- Core Integrity 0/250 Matter 109/300 Energy 104/125 System Corruption 0% Temperature Cool (0) Movement Treading (160) Location -10/Subcaves Parts ------- > --- POWER (1) -------- Light Ion Engine > --- PROPULSION (2) --- Light Treads Light Treads > --- UTILITY (2) ------ Large Storage Unit Structural Scanner > --- WEAPON (2) ------- Grenade Launcher Makeshift Axe > --- INVENTORY (15) --- Light Treads Structural Scanner Sensor Array Improved Terrain Scanner Seismic Detector Hacking Suite Makeshift Hacking Suite Makeshift System Shield Heavy Riot Gun Subdweller Machine Gun Light Cannon Light Cannon Grenade Launcher Peak State ------------ > --- POWER ------------ Light Ion Engine > --- PROPULSION ------- Light Treads Light Treads > --- UTILITY ---------- Large Storage Unit Structural Scanner > --- WEAPON ----------- Subdweller Machine Gun Makeshift Axe > --- INVENTORY -------- Light Treads Structural Scanner Sensor Array Improved Terrain Scanner Seismic Detector Hacking Suite Makeshift Hacking Suite Makeshift System Shield Light Cannon Light Cannon Grenade Launcher Grenade Launcher [Rating: 13] Favorites ----------- Power Light Ion Engine Engine Light Ion Engine Propulsion Light Treads Treads Light Treads Leg Aluminum Leg Wheel Wheel Utility Large Storage Unit Device Structural Scanner Storage Large Storage Unit Weapon Light Cannon Ballistic Gun Assault Rifle Ballistic Cannon Light Cannon Launcher Grenade Launcher Slashing Weapon Makeshift Axe Build | -11 -10 -10 ------- Run | Yrd Mat Sub Slots Evolved . | . . . Power . | . . . Propulsion . | . . . Utility . | . . . Weapon . | . . . Parts Attached 27 | 3 9 15 Power 2 | . 1 1 Engine 2 | . 1 1 Core . | . . . Reactor . | . . . Propulsion 7 | 2 2 3 Treads 3 | . . 3 Leg . | . . . Wheel 4 | 2 2 . Hover . | . . . Flight . | . . . Utility 3 | 1 2 . Device 2 | 1 1 . Storage 1 | . 1 . Processor . | . . . Hackware . | . . . Protection . | . . . Artifact . | . . . Weapon 15 | . 4 11 Energy Gun . | . . . Energy Cannon . | . . . Ballistic Gun 2 | . 1 1 Ballistic Cannon 5 | . 2 3 Launcher 5 | . 1 4 Special Weapon . | . . . Impact Weapon . | . . . Slashing Weapon 3 | . . 3 Piercing Weapon . | . . . Special Melee Weapon . | . . . Unidentified Prototypes . | . . . Parts Lost 7 | . 2 5 Power 1 | . . 1 Propulsion 4 | . 2 2 Utility . | . . . Weapon 2 | . . 2 Highest Loss Streak 2 | . 1 2 To Critical Strikes . | . . . Average Slot Usage (%) 98 | . 96 99 Engine 13 | . 14 13 Treads 17 | . . 26 Wheel 8 | . 24 . Device 14 | . 14 14 Storage 14 | . 14 14 Ballistic Gun 5 | . 14 1 Ballistic Cannon 20 | . 13 24 Naked Turns . | . . . Heaviest Build 32 | 13 32 32 Greatest Support 40 | 20 20 40 Greatest Overweight (x) 3 | . 3 3 Average Overweight (x) . | . 1 . Largest Inventory Capacity 15 | 8 15 15 Average Capacity 14 | 8 14 15 Most Carried 15 | 7 15 15 Average Carried 12 | 5 12 12 Final Capacity 15 | 8 15 15 Final Carried 15 | 6 15 13 Class Distribution -------------------- 97% | Mutant Dominant Class ---------------- Mutant | -10/Materials Mutant | -10/Subcaves Resources | -11 -10 -10 ----------- Run | Yrd Mat Sub Matter Collected 990 | 308 410 272 Remotely . | . . . Salvage Created 812 | 169 500 143 Parts 57 | 14 32 11 Haulers Intercepted 2 | . 2 . Recyclers Shooed 1 | . 1 . Parts Field Recycled . | . . . Retrieved Matter . | . . . Parts Self-Destructed 6 | . . 6 Prevented . | . . . Kills | -11 -10 -10 ------- Run | Yrd Mat Sub Combat Hostiles Destroyed 22 | . 13 9 Melee 2 | . . 2 Guns 3 | . 3 . Cannons 10 | . 7 3 AOE 7 | . 3 4 Classes Destroyed 9 | 2 6 1 Builder 2 | . 2 . Tunneler 6 | 5 1 . Hauler 2 | . 2 . Recycler 1 | 1 . . Operator 1 | . 1 . Watcher 1 | . 1 . Swarmer 6 | . 3 3 Grunt 10 | . 10 . Subdweller 6 | . . 6 Best Kill Streak 5 | 4 5 3 Combat Bots Only 4 | . 4 3 Max Kills in Single Turn 3 | 1 2 3 Gunslinging . | . . . Exploded 3 | . 2 3 Melee 1 | . . 1 Uniques/NPCs Destroyed . | . . . Combat | -11 -10 -10 -------- Run | Yrd Mat Sub Hostile Shots Fired 105 | . 49 56 Missed 33 | . 18 15 Damage Taken 1352 | . 374 978 Core 263 | . 70 193 Absorbed by Shields . | . . . Core Remaining (%) 100 | 100 . . Volleys Fired 117 | 13 39 65 Largest 2 | 2 2 2 Hottest 70 | 40 70 70 Shots Fired 177 | 26 74 77 Gun 66 | 26 40 . Cannon 102 | . 30 72 Launcher 9 | . 4 5 Special . | . . . Kinetic 168 | 26 70 72 Thermal . | . . . Explosive 9 | . 4 5 Electromagnetic . | . . . Robot Hit Streak 19 | 5 7 19 Robot Miss Streak 3 | 2 3 2 Penetration Max . | . . . Secondary Targets 2 | . 2 . Max Gunslinging Chain 1 | . 1 . Shots Hit Robots 103 | 15 49 39 Core Hits 50 | 7 26 17 Critical Kills 1 | . 1 . Critical Parts Destroyed . | . . . Critical Strikes 2 | . 1 1 Destroy 1 | . 1 . Blast 1 | . . 1 Melee Attacks 14 | . . 14 Impact . | . . . Slashing 14 | . . 14 Piercing . | . . . Sneak Attacks . | . . . Combat Hostiles . | . . . Follow-up Attacks . | . . . Damage Inflicted 2473 | 189 997 1287 Guns 566 | 189 377 . Cannons 858 | . 358 500 Explosions 672 | . 262 410 Melee 377 | . . 377 Ramming . | . . . Kinetic 1424 | 189 735 500 Thermal . | . . . Explosive 672 | . 262 410 Electromagnetic . | . . . Impact . | . . . Slashing 377 | . . 377 Piercing . | . . . Highest Corruption . | . . . Average Corruption . | . . . Corruption Purged . | . . . Corruption Blocked . | . . . Overload Shots . | . . . Overflow Damage 1 | . . 1 Projectiles . | . . . Explosions 1 | . . 1 Melee . | . . . Knockbacks 11 | . 7 4 Impact . | . . . Kinetic 10 | . 6 4 Secondary 1 | . 1 . Self-Inflicted Damage 103 | . 4 99 Shots 5 | . 1 4 Rammed . | . . . Targets Rammed . | . . . Kicked . | . . . Crushed . | . . . Highest Temperature 78 | 6 78 . Average Temperature 31 | 6 32 . Received Heat Transfer 279 | . 156 123 Siege Activations . | . . . Robots Corrupted . | . . . Combat Hostiles . | . . . Parts Fried . | . . . Impact Corruptions . | . . . Robots Melted . | . . . Combat Hostiles . | . . . Parts Melted . | . . . Heat Transferred . | . . . Parts Sabotaged . | . . . Parts Stolen . | . . . Parts Stripped . | . . . Power Chain Reactions . | . . . Alert | -11 -10 -10 ------- Run | Yrd Mat Sub Peak Influence 181 | 30 181 . Initial 19 | . 19 . Average 61 | 13 66 . Maximum Alert Level . | . . . Low Security (%) 100 | 100 100 . Level 1 . | . . . Level 2 . | . . . Level 3 . | . . . Level 4 . | . . . Level 5 . | . . . High Security . | . . . Max Security . | . . . Squads Dispatched 3 | . 3 . Investigation 2 | . 2 . Extermination . | . . . Reinforcement 1 | . 1 . Assault . | . . . Garrison . | . . . Intercept . | . . . Searches Triggered . | . . . Construction Impeded . | . . . Haulers Reinforced . | . . . Active Scanning Responses . | . . . Cargo Convoy Interrupts . | . . . Stealth | -11 -10 -10 --------- Run | Yrd Mat Sub Distress Signals 2 | . 2 . Communications Jammed . | . . . Distress Signals . | . . . Times Spotted 32 | . 20 12 Peak Tracking Total 5 | . 5 3 Tactical Retreats . | . . . Traps | -11 -10 -10 ------- Run | Yrd Mat Sub Traps Triggered 6 | . 4 2 Indirectly . | . . . Trap Hack Attempts . | . . . Triggered . | . . . Disarmed . | . . . Reprogrammed . | . . . Reused . | . . . Traps Extracted . | . . . Installed . | . . . Triggered . | . . . Machines | -11 -10 -10 ---------- Run | Yrd Mat Sub Machines Disabled . | . . . Max in Single Turn . | . . . Machines Repaired . | . . . Machines Dismantled . | . . . Machines Sabotaged . | . . . Overloaded Fab Kills . | . . . Hacking | -11 -10 -10 --------- Run | Yrd Mat Sub Machines Accessed 6 | . 6 . Terminals 6 | . 6 . Fabricators . | . . . Repair Stations . | . . . Recycling Units . | . . . Scanalyzers . | . . . Garrison Access . | . . . Total Hacks 17 | . 17 . Successful 10 | . 10 . Failed 7 | . 7 . Catastrophic . | . . . Database Lockouts . | . . . Manual 11 | . 11 . Terminals 17 | . 17 . Fabricators . | . . . Repair Stations . | . . . Recycling Units . | . . . Scanalyzers . | . . . Garrison Access . | . . . Terminal Hacks 7 | . 7 . Robot Analysis 2 | . 2 . Prototype ID Bank 1 | . 1 . Unreport Threat 2 | . 2 . Locate Traps 1 | . 1 . Registered Components 1 | . 1 . Fabricator Hacks . | . . . Repair Station Hacks . | . . . Recycling Unit Hacks . | . . . Scanalyzer . | . . . Garrison Access Hacks . | . . . Unauthorized Hacks 3 | . 3 . Terminals 3 | . 3 . Botnet 3 | . 3 . Fabricators . | . . . Repair Stations . | . . . Recycling Units . | . . . Scanalyzers . | . . . Garrison Access . | . . . Data Cores Recovered . | . . . Used . | . . . Hacking Detections 6 | . 6 . Full Trace Events . | . . . Feedback Events . | . . . Feedback Blocked . | . . . Robot Schematics Acquired . | . . . Robots Built . | . . . Authchips . | . . . Time . | . . . Total Robot Build Rating . | . . . Part Schematics Acquired . | . . . Parts Built . | . . . Authchips . | . . . Time . | . . . Total Part Build Rating . | . . . Parts Repaired . | . . . Time . | . . . Parts Recycled . | . . . Recycled Matter . | . . . Retrieved Matter . | . . . Retrieved Components . | . . . Parts Scanalyzed . | . . . Part Schematics Acquired . | . . . Parts Damaged . | . . . Bothacking | -11 -10 -10 ------------ Run | Yrd Mat Sub Used RIF Installer . | . . . Robots Hacked . | . . . Non-combat . | . . . Combat . | . . . Robot Hacks Applied . | . . . Relay Couplers Released . | . . . Fabnet Peak Effective % . | . . . Robots Rewired . | . . . Allies Hacked . | . . . Hacks Repelled . | . . . Allies | -11 -10 -10 -------- Run | Yrd Mat Sub Total Allies . | . . . Largest Group . | . . . Highest-Rated Group . | . . . Highest-Rated Ally . | . . . Total Orders . | . . . Ally Attacks . | . . . Total Damage . | . . . Kills . | . . . Allies Corrupted . | . . . Allies Melted . | . . . Intel | -11 -10 -10 ------- Run | Yrd Mat Sub Robot Analysis Total 2 | . 2 . Derelict Logs Recovered . | . . . Drone Launches . | . . . Drone Recoveries . | . . . Exploration | -11 -10 -10 ------------- Run | Yrd Mat Sub Turns Passed 2674 | 81 909 1684 Spaces Moved 1510 | 34 540 936 Core . | . . . Treads 891 | . . 891 Legs 6 | 6 . . Wheels 613 | 28 540 45 Hover . | . . . Flight . | . . . Fastest Speed 80 | 80 80 125 Average Speed 134 | 87 95 158 Slowest Speed 160 | 120 125 160 Overloaded Moves . | . . . Propulsion Burnouts . | . . . Robots Hopped . | . . . Cave-ins Triggered . | . . . Exploration Rate (%) 45 | 4 83 50 Regions Visited 2 Branch Regions 1 Pre-discovered Areas . | . . . Known Exits Taken . | . . . Unknown Exits Taken 2 | 1 1 . Scrap Searched . | . . . Spaces Dug 5 | . . 5 Terrain Destroyed 56 | . 37 19 Melee . | . . . Projectile . | . . . AOE 56 | . 37 19 Terrain Rammed . | . . . Walls Destroyed . | . . . Machines Disabled . | . . . Actions | -11 -10 -10 --------- Run | Yrd Mat Sub Total 1968 | 59 863 1046 Wait 268 | 4 254 10 Move 1508 | 33 539 936 Hop . | . . . Pick Up 19 | 3 13 3 Fast Attach 6 | 1 3 2 Attach 7 | . 1 6 Detach 4 | . 2 2 Swap 14 | 2 5 7 Drop 11 | 3 7 1 Fire 117 | 13 39 65 Melee 14 | . . 14 Ram . | . . . Kick . | . . . Crush . | . . . Escape Stasis . | . . . Rewire . | . . . Trap . | . . . Miscellaneous . | . . . Route ------- -11/Scrapyard -10/Materials (discovered 4 exits: [*Mat x2] / [*Min] / [*Sub]) -10/Subcaves (discovered 2 exits: [*Mat x2]) History --------- Turn | Location | Event 13 | -11/Scrapyard | Discovered new exit (range 2) 82 | -11/Scrapyard | Entered Materials 313 | -10/Materials | Build established: Mutant 315 | -10/Materials | Discovered new exit (range 8) 502 | -10/Materials | Discovered new exit (range 16) 553 | -10/Materials | Discovered new exit (range 14) 820 | -10/Materials | Discovered new exit (range 5) 991 | -10/Materials | Entered Subcaves 992 | -10/Subcaves | Shifting Twisted Machinery released Mak. System Shield 1011 | -10/Subcaves | Shifting Twisted Machinery released Mak. Hacking Suite 1192 | -10/Subcaves | Discovered new exit (range 8) 1742 | -10/Subcaves | Core integrity fell below 50% 2442 | -10/Subcaves | Discovered new exit (range 12) 2486 | -10/Subcaves | Core integrity fell below 20% 2576 | -10/Subcaves | Shifting Twisted Machinery released Hvy. Riot Gun 2675 | -10/Subcaves | Destroyed self with Grenade Launcher Last Messages --------------- 02439_ Acquired Mak. Axe. 02442_ EXIT=FOUND 02443_ XO-EZC(O) collects matter. 02457_ XO-EZC(O) puts together Sub. Machine Gun. 02468_ Dropped Sml. Matter Pod. 02469_ Extracted 50 matter. 02479_ HY-J90(R) destroyed. 02484_ 4H-PKR(R) affixes Scrap Shield Fragment to Scrap Shield. 02485_ Acquired 51 matter. 02492_ Subatomizers dissect the Sub. Optics. 02495_ 4H-PKR(R) affixes Scrap Shield Fragment to Scrap Shield. 02501_ 4H-PKR(R) destroyed. 02503_ Acquired 37 matter. 02505_ Subatomizers dissect the Sub. Optics. 02506_ The unstable cave ceiling collapses. 02508_ Acquired Sub. Machine Gun. 02518_ Subatomizers dissect the Sub. Optics. 02518_ Acquired 14 matter. Hvy. Riot Gun falls loose from the Twisted Machinery. 02594_ Acquired Hvy. Riot Gun. Map ----- +----------------------------------------------------+ | ##???????????????????????????????????????????????? | | ##???????????????????????????????????????????????? | | ###??????????????????????????????????????????????? | | #####????????????????????????????????????????????? | | #####???????????????????????????????????????????? | | ####??????????????????????????????????????????? | | #######??????????????????????????????????????? | | ######??????????????????????????????????????? | | ## ##??????????????????????????????????????? | | ### ##??????????????????????????????????????? | | #### ########????????????????????????????????? | | ##### ########????????????????????????????????? | | ##### #### ##????????????????????????????????? | | #### #### ###???????????????????????????????? | | ?## ###???????????????????????????????? | | ### ##???????????????????????????????? | | ## ## ##??######???????????????????????? | | # #### ##?########??????????????????????? | | ##### ###### ###??????????????????????? | | ## ##### ##???????? ##???????????? | | ###?????? ##???????????? | | ###????? ###???????????? | | ## ## ##??? ##???????????? | | ## ### ###?s ? ##???????????? | | #### ### # s ##?????????????????? | | ## ## ##### ##### @s ##?????????????????? | | ############# ###### # ?###????????? | | ##########?### ####?### ## ##????????? | | ???????????### ##??###### ###????????? | | ????????????## #?????###?? ###????????? | | ???????????## ##?????????? #?????????? | | ???????????### ##??????????? ??????????? | | ???????????### ?????????????? ## ## ??????????? | | ???????????? # ?????????????? ####### ??????????? | | ???????????? ??????????????########???????????? | | ????????????? ??????????????###????????????????? | | ?????????????" ?????????????????????????????????? | | ?????????????? ??????????????????????????????????? | | ?????????????????????????????????????????????????? | | ?????????????????????????????????????????????????? | | ???????????????? ##??????????????????????????????? | | ????????????## ##??????????????????????????????? | | ???????####### ##??????????????????????????????? | | ?############ " "#??????????????????????????????? | | ?########" ## " "###?????????????????????????????? | | ### "" """ ###?????????????????????????????? | | ### """"" " ##?????????????????????????????? | | ### #####"" " ###?????????????????????????????? | | ### ### "################????????????????????? | | ## #### ################???????############? | +----------------------------------------------------+ Best States ------------- Heat Dissipation 25 Energy Generation 10 Energy Capacity 250 Matter Stores 300 Matter Capacity 300 Sight Range 16 Terrain Scan Density 10 Evasion (%) 44 Recoil Reduction 2 Item Schematics ----------------- None Robot Schematics ------------------ None Fabricated ------------ Nothing Alien Tech Used ----------------- None Achievements -------------- None Challenges ------------ None Game ------ Seed AutogunWarpReplicator Manual? 0 Play Time 00:20:24 Cumulative 134.4 hours Start 2024.04.17 @ 19:55:15 End 2024.04.17 @ 20:09:12 Sessions 1 Manual Loads 0 Difficulty Rogue Special Mode None Game No. 123 Rogue 123 Adventurer 0 Explorer 0 Win Type - Total 3 Types 2/0/0/1/0/0/0/0/0 Lore% 53 Gallery% 71 Achievement% 55 Wizard Run 0 Options --------- Layout 2 ASCII 0 Keyboard 1 Movement Numpad Keybinds 0 Fullscreen 1 Font 32/SmallcapsGlow Map View 77x44 Zoom Use 0% Tactical HUD 1 Map Filters NONE Filters NONE Steam 1 RUN: bed76832-470c-4cc1-a612-a322b976f26d